bitfinex/quotes_ETHUSD_20250813
["timestamp","ask_amount","ask_price","bid_price","bid_amount"]
[1755047654593,0.55,4575.5,4574.7,3.303]
[1755047654819,0.55,4575.5,4573.3,5.237]
[1755047654820,0.55,4575.5,4574.8,12.97056]
[1755047655017,0.55,4575.5,4573.3,5.36949401]
[1755047655018,0.55,4575.3,4574.9,3.577383]
[1755047655228,0.55,4575.3,4573.3,5.36949401]
[1755047655229,0.55,4575.3,4575.0,5.915]
[1755047655432,1.23,4576.7,4575.1,8.5671]
[1755047655621,1.23,4576.7,4575.2,11.58]
[1755047655815,1.23,4576.7,4575.3,16.76065255]
[1755047656016,0.123,4576.6,4575.4,24.229023]
[1755047656331,0.123,4576.6,4575.5,0.60232355]
[1755047656628,0.123,4576.6,4575.6,3.605]
[1755047656935,0.123,4576.6,4575.7,6.014212]
[1755047656936,0.778253,4576.6,4575.7,6.014212]
[1755047657231,2.46,4576.7,4575.7,3.605]
[1755047657433,2.46,4576.7,4575.8,3.606]
[1755047657593,2.46,4576.7,4575.4,5.238]
[1755047657791,0.55,4576.6,4575.5,3.607]
[1755047658132,2.435303,4576.6,4575.6,3.607]
[1755047658331,2.435303,4576.6,4575.4,5.238]
[1755047658332,0.55,4575.9,4575.4,5.238]
[1755047658490,0.55,4575.7,4575.4,5.238]
[1755047658690,0.55,4576.4,4575.5,6.3731]
[1755047658889,1.23,4576.6,4575.6,11.12393]
[1755047659125,1.23,4576.6,4575.7,6.309985]
[1755047659331,1.23,4576.6,4575.8,12.203739]
[1755047659529,1.23,4576.6,4575.9,11.096642]
[1755047659702,1.23,4576.6,4576.0,2.7671]
[1755047659903,2.46,4576.6,4576.1,4.15338]
[1755047660217,2.46,4576.6,4576.2,5.572094]
[1755047660528,2.46,4576.6,4576.3,2.7671]
[1755047660690,0.492,4576.5,4576.4,2.7671]
[1755047660892,3.01,4576.6,4576.5,2.7671]
[1755047661457,3.69,4576.6,4576.5,2.7671]
[1755047661628,3.69,4576.6,4576.5,6.3721]
[1755047662193,3.69,4576.6,4576.5,2.7671]
[1755047662592,3.69,4576.6,4576.5,6.3701]
[1755047662833,4.92,4576.6,4576.5,2.7671]
[1755047663034,4.92,4576.6,4576.5,6.3701]
[1755047663422,4.92,4576.6,4576.5,9.05733]
[1755047663733,4.92,4576.6,4576.5,2.7671]
[1755047664033,5.5796,4576.6,4576.5,3.6]
[1755047664194,0.55,4576.5,4576.0,2.334]
[1755047664393,0.55,4576.5,4575.5,0.4331]
[1755047664394,0.55,4576.0,4575.5,2.334]
[1755047664631,0.55,4575.7,4575.4,5.238]
[1755047664832,0.55,4575.7,4575.6,3.601]
[1755047665034,0.6596,4575.5,4575.4,5.238]
[1755047665255,0.99910158,4575.5,4575.4,8.839]
[1755047665563,0.6596,4575.5,4575.4,8.839]
[1755047666841,0.6596,4575.5,4575.4,5.238]
[1755047667043,1.8896,4575.5,4575.4,8.835]
[1755047668519,3.1196,4575.5,4575.4,8.832]
[1755047668947,3.1196,4575.5,4575.4,8.831]
[1755047669156,3.43156,4575.5,4575.4,8.831]
[1755047669527,0.55,4575.4,4574.9,0.001]
[1755047669863,0.55,4575.4,4575.0,5.239]
[1755047670016,0.6596,4575.1,4575.0,8.831]
[1755047670651,0.6596,4575.1,4575.0,5.239]
[1755047670855,0.6596,4575.1,4575.0,8.841]
[1755047671227,1.8896,4575.1,4575.0,8.84]
[1755047671433,1.8896,4575.1,4575.0,8.839]
[1755047671820,1.8896,4575.1,4575.0,8.837]
[1755047672024,1.8896,4575.1,4575.0,5.239]
[1755047672274,1.3396,4575.1,4575.0,8.0858]
[1755047672427,2.5696,4575.1,4575.0,11.6838]
[1755047672623,2.5696,4575.1,4575.0,8.0858]
[1755047672839,3.01,4575.1,4575.0,7.6242]
[1755047673133,3.01,4575.1,4575.0,8.837]
[1755047673341,3.311,4575.1,4575.0,8.837]
[1755047674068,4.541,4575.1,4575.0,8.837]
[1755047674271,4.541,4575.1,4575.0,8.836]
[1755047674570,4.24,4575.1,4575.0,8.836]
[1755047674874,4.24,4575.1,4575.0,8.833]
[1755047675239,5.47,4575.1,4575.0,8.833]
[1755047676078,2.293,4573.6,4570.7,2.3852]
[1755047676235,2.1858879,4574.8,4570.9,0.4616]
[1755047676236,2.293,4573.2,4570.9,0.4616]
[1755047676573,0.46115534,4573.1,4571.0,2.3852]
[1755047676878,2.18720216,4572.1,4570.5,2.3852]
[1755047677079,0.21872022,4572.0,4570.6,3.633]
[1755047677234,0.3857,4572.8,4570.7,4.0946]
[1755047677434,0.46035926,4572.7,4570.8,2.3852]
[1755047677658,0.655924,4573.1,4570.9,0.4616]
[1755047677896,2.1867483,4573.0,4571.0,2.3852]
[1755047678034,1.041624,4573.1,4571.0,2.3852]
[1755047678374,1.23,4572.0,4571.1,8.902]
[1755047678575,1.23,4572.0,4571.2,11.18069]
[1755047678883,1.23,4572.0,4571.3,3.355097]
[1755047679179,1.23,4572.0,4571.4,5.24]
[1755047679380,1.23,4572.0,4570.8,2.8468]
[1755047679670,0.123,4571.9,4570.9,8.913]
[1755047679871,0.123,4571.9,4571.0,3.673]
[1755047680176,0.123,4571.9,4570.8,2.8468]
[1755047680337,0.123,4571.9,4571.1,8.913]
[1755047680539,0.123,4571.9,4571.1,5.241]
[1755047680859,1.23,4572.0,4571.1,5.241]
[1755047680860,1.23,4572.0,4571.2,13.7205]
[1755047681059,2.46,4572.0,4571.2,2.3852]
[1755047681261,2.46,4572.0,4570.6,0.4616]
[1755047681468,4.64724596,4572.0,4571.3,5.241]
[1755047682076,2.46,4572.0,4571.4,3.678]
[1755047682377,2.46,4572.0,4570.0,0.001]
[1755047682378,16.80806508,4571.5,4567.9,2.3852]
[1755047682576,18.99621735,4570.1,4567.9,2.3852]
[1755047682782,0.1096,4568.0,4567.9,2.3852]
[1755047683082,0.1096,4568.0,4566.9,0.4616]
[1755047683283,2.87000866,4570.6,4566.9,0.4616]
[1755047683284,0.1096,4567.3,4567.2,1.65560994]
[1755047683488,0.1096,4567.3,4567.2,2.11720994]
[1755047683684,0.1096,4567.3,4566.4,0.0125729]
[1755047683891,0.57700866,4568.2,4566.5,15.477484]
[1755047684086,0.4573582,4568.1,4566.6,0.4616]
[1755047684294,0.57700866,4567.9,4566.4,0.25543246]
[1755047684461,0.4573582,4567.8,4566.7,3.738]
[1755047684649,0.1096,4566.6,4566.4,0.25543246]
[1755047684849,0.3857,4567.6,4566.5,3.768]
[1755047685090,0.45618654,4567.5,4566.4,0.25543246]
[1755047685248,0.84188654,4567.4,4566.4,0.0125729]
[1755047685444,0.57700866,4567.1,4566.4,0.0125729]
[1755047685679,0.45618654,4567.0,4566.5,3.811]
[1755047685881,2.18981298,4566.6,4564.3,2.8468]
[1755047686180,2.18981298,4566.6,4561.3,1.16350809]
[1755047686181,0.55,4565.7,4563.5,2.3852]
[1755047686397,0.55,4565.7,4563.6,24.672773]
[1755047686547,0.55,4566.7,4563.7,36.6768]
[1755047686745,0.55,4566.5,4563.8,32.8468]
[1755047686945,0.55,4566.5,4563.9,27.572505]
[1755047686946,0.55,4566.3,4563.9,27.572505]
[1755047687182,0.56871045,4566.9,4564.0,18.228575]
[1755047687383,0.55,4566.9,4564.1,38.86678859]
[1755047687583,0.55,4566.9,4562.5,0.1]
[1755047687584,0.55,4566.7,4564.2,18.59918]
[1755047687743,0.55,4565.7,4564.2,8.0908]
[1755047687948,0.82402197,4565.7,4564.3,3.832]
[1755047688175,0.56871045,4566.5,4564.2,8.0908]
[1755047688176,0.55,4565.9,4564.2,8.0908]
[1755047688348,0.55,4565.7,4564.3,6.6778]
[1755047688561,0.56871045,4567.1,4564.4,8.132935]
[1755047688772,1.23,4567.3,4564.5,18.619691]
[1755047689084,2.18994072,4566.4,4564.6,15.441977]
[1755047689290,2.74002338,4566.2,4564.7,12.859934]
[1755047689457,0.21899407,4566.4,4564.2,5.244]
[1755047689458,0.55,4566.3,4564.8,12.910359]
[1755047689658,0.55,4566.3,4564.9,6.285965]
[1755047689986,1.886692,4567.0,4564.2,5.244]
[1755047689987,2.73968334,4566.9,4565.0,9.8508]
[1755047690184,1.886692,4567.0,4565.1,14.440371]
[1755047690508,0.55,4566.8,4565.2,5.246]
[1755047690665,0.55,4566.8,4565.1,5.5748]
[1755047690849,0.55,4565.8,4565.2,5.246]
[1755047691278,0.55,4565.8,4565.3,3.832]
[1755047691541,0.55,4566.7,4565.3,3.832]
[1755047691671,0.55,4566.5,4565.3,3.832]
[1755047692055,0.55,4566.5,4565.4,2.3852]
[1755047692384,1.23,4565.9,4565.5,0.4616]
[1755047692703,1.23,4565.9,4565.6,2.8468]
[1755047692907,1.23,4565.9,4565.7,3.828]
[1755047693054,1.23,4565.9,4565.8,2.8468]
[1755047693679,1.23,4565.9,4565.8,12.11063]
[1755047693879,1.23,4565.9,4565.8,10.955467]
[1755047694052,1.23,4565.9,4565.8,5.395643]
[1755047694454,1.23,4565.9,4565.8,4.30878347]
[1755047694708,1.23,4565.9,4565.8,14.18260947]
[1755047694851,1.23,4565.9,4565.8,34.05973714]
[1755047695193,1.23,4565.9,4565.8,37.88173714]
[1755047695401,1.15090144,4565.9,4565.8,37.88173714]
[1755047696584,1.15090144,4565.9,4565.8,38.34133714]
[1755047697002,1.15090144,4565.9,4565.8,38.33633714]
[1755047697906,1.15090144,4565.9,4565.8,38.33233714]
[1755047698090,2.38090144,4565.9,4565.8,38.33233714]
[1755047698292,2.38090144,4565.9,4565.8,38.33033714]
[1755047699410,3.57726923,4565.9,4565.8,38.22073714]
[1755047699704,3.57726923,4565.9,4565.8,8.21673714]
[1755047699907,3.57726923,4565.9,4565.8,38.21673714]
[1755047700239,1.23,4566.5,4566.2,2.19000481]
[1755047700369,1.23,4567.0,4566.9,2.18966914]
[1755047700568,1.23,4567.0,4566.9,4.93356914]
[1755047700829,1.23,4567.0,4566.9,38.73756914]
[1755047700970,1.23,4567.0,4566.9,34.93356914]
[1755047701310,1.23,4567.0,4566.9,38.73756914]
[1755047701668,2.46,4567.3,4567.2,2.18952531]
[1755047701867,0.002,4567.8,4567.3,32.18947737]
[1755047702070,0.002,4567.8,4567.3,42.58437737]
[1755047702685,1e-08,4567.5,4567.4,2.18942943]
[1755047702911,1e-08,4567.5,4567.4,34.93332943]
[1755047703107,1e-08,4567.8,4567.7,2.18928563]
[1755047703421,1e-08,4567.8,4567.7,5.98628563]
[1755047703595,1e-08,4567.8,4567.7,38.73018563]
[1755047703796,1e-08,4567.8,4567.7,38.89065892]
[1755047703999,0.55,4568.0,4567.9,2.18918978]
[1755047704197,0.85167939,4571.9,4568.0,2.18914185]
[1755047704198,1.78,4568.1,4568.0,2.18914185]
[1755047704421,1.78,4568.1,4568.0,34.93304185]
[1755047704835,0.4586,4571.2,4568.0,34.93304185]
[1755047705010,0.4586,4571.2,4569.5,2.18841902]
[1755047705208,1.23,4571.5,4571.2,3.53127]
[1755047705500,1.23,4571.5,4571.3,9.035]
[1755047705501,0.123,4571.4,4571.3,9.035]
[1755047705923,0.123,4571.4,4571.3,39.035]
[1755047706123,0.123,4571.4,4571.3,14.94035486]
[1755047706326,0.123,4571.4,4571.3,13.52597386]
[1755047706557,0.123,4571.4,4571.3,13.52297386]
[1755047706800,0.55,4571.4,4571.3,15.83647386]
[1755047707001,0.55,4571.4,4571.3,41.94283786]
[1755047707635,0.4383,4571.4,4571.3,44.13039938]
[1755047708500,0.4383,4571.4,4571.3,38.88339938]
[1755047708702,0.4383,4571.4,4571.3,35.09839938]
[1755047708943,1.6683,4571.4,4571.3,38.87839938]
[1755047709263,1.6683,4571.4,4571.3,38.98799938]
[1755047709471,1.6683,4571.4,4571.3,35.20799938]
[1755047709748,2.46,4571.5,4571.3,35.30799938]
[1755047709916,2.3514217,4571.5,4571.4,34.93141367]
[1755047710513,2.3514217,4571.5,4571.4,38.71141367]
[1755047710953,2.3514217,4571.5,4571.4,8.71141367]
[1755047711155,2.3514217,4571.5,4571.4,38.71141367]
[1755047711500,0.002,4571.9,4571.8,2.18732228]
[1755047711813,0.552,4571.9,4571.8,13.71592228]
[1755047712021,0.552,4571.9,4571.8,46.45982228]
[1755047712410,3.41855425,4572.0,4571.9,2.18727443]
[1755047712599,3.30997595,4572.0,4571.9,38.70917443]
[1755047714119,0.1096,4574.6,4571.9,38.70917443]
[1755047714120,4.80465195,4575.1,4573.6,2.1864519]
[1755047714270,0.55,4574.9,4574.1,2.18617861]
[1755047714439,0.55,4574.9,4574.2,33.776]
[1755047714638,0.55,4574.9,4574.8,0.1096]
[1755047714831,0.55,4575.0,4574.8,33.8836]
[1755047715032,0.55,4575.0,4574.9,30.0]
[1755047715443,0.55,4575.0,4574.9,35.242]
[1755047716086,1.15334695,4575.0,4574.9,35.242]
[1755047716428,1.15334695,4575.0,4574.9,35.40929797]
[1755047716632,1.15334695,4575.0,4574.9,39.90863809]
[1755047716933,2.38334695,4575.0,4574.9,51.74403809]
[1755047717475,2.38334695,4575.0,4574.9,51.85363809]
[1755047718357,4.7503628,4575.1,4575.0,32.18579234]
[1755047718565,1e-08,4575.6,4575.5,2.18555349]
[1755047718866,1e-08,4575.6,4575.5,43.58355349]
[1755047719086,1e-08,4575.6,4575.5,46.43705349]
[1755047719248,1e-08,4575.6,4575.5,47.74605349]
[1755047719443,1e-08,4575.6,4575.5,42.67505349]
[1755047719644,1e-08,4575.6,4575.5,46.43705349]
[1755047719859,2.46,4576.7,4576.0,2.18531468]
[1755047720079,2.46,4576.7,4576.0,43.58231468]
[1755047720274,0.552,4576.5,4576.0,41.5036]
[1755047720606,0.552,4576.5,4576.0,37.7456]
[1755047720884,0.552,4576.5,4576.0,14.304147]
[1755047721059,1.0106,4576.1,4576.0,14.521947]
[1755047721264,2.2406,4576.1,4576.0,14.304147]
[1755047721779,1.782,4576.1,4576.0,19.881946]
[1755047721987,1.782,4576.1,4576.0,33.216358]
[1755047722182,1.782,4576.1,4576.0,29.739787]
[1755047722400,1.782,4576.1,4576.0,28.969338]
[1755047722580,3.012,4576.1,4576.0,28.969338]
[1755047722899,3.012,4576.1,4576.0,33.8646]
[1755047723378,3.012,4576.1,4576.0,33.755]
[1755047723580,3.012,4576.1,4576.0,38.36341468]
[1755047723741,3.012,4576.1,4576.0,38.79381468]
[1755047723944,4.242,4576.1,4576.0,38.36341468]
[1755047724182,4.242,4576.1,4576.0,38.79381468]
[1755047724384,4.242,4576.1,4576.0,32.8535]
[1755047724591,4.242,4576.1,4576.0,33.8556]
[1755047724793,4.242,4576.1,4576.0,37.7466]
[1755047724941,4.242,4576.1,4576.0,41.4916]
[1755047725281,4.242,4576.1,4576.0,41.4906]
[1755047725503,5.472,4576.1,4576.0,53.95241468]
[1755047725661,5.472,4576.1,4576.0,41.8156]
[1755047725865,5.472,4576.1,4576.0,41.8176]
[1755047726062,5.472,4576.1,4576.0,40.25791468]
[1755047726260,5.472,4576.1,4576.0,44.00391468]
[1755047726795,5.472,4576.1,4576.0,41.8186]
[1755047726963,6.702,4576.1,4576.0,41.8186]
[1755047727159,6.702,4576.1,4576.0,38.0726]
[1755047727361,6.702,4576.1,4576.0,41.8176]
[1755047727790,6.702,4576.1,4576.0,26.604235]
[1755047728003,7.8308,4576.1,4576.0,8.0726]
[1755047728184,7.8308,4576.1,4576.0,14.080547]
[1755047728185,9.0368,4576.1,4576.0,14.080547]
[1755047728367,10.2668,4576.1,4576.0,14.080547]
[1755047728797,10.2668,4576.1,4576.0,2.724]
[1755047729135,0.55,4576.0,4574.9,0.16729797]
[1755047729269,0.55,4575.8,4575.0,16.065218]
[1755047729463,0.55,4575.6,4575.1,30.0]
[1755047729668,0.55,4575.6,4575.4,0.1096]
[1755047729905,0.55,4575.6,4575.5,33.8456]
[1755047730106,0.55,4576.0,4575.5,33.8456]
[1755047730303,0.55,4576.0,4575.6,30.0]
[1755047730508,1.0003,4576.0,4575.7,3.736]
[1755047730723,0.55,4576.0,4575.8,30.0]
[1755047730923,1.78,4576.0,4575.9,3.8436]
[1755047731085,1.78,4576.0,4575.9,33.8436]
[1755047731983,1.78,4576.0,4575.9,29.512382]
[1755047732508,3.01,4576.0,4575.9,3.8436]
[1755047733695,4.24,4576.0,4575.9,33.8436]
[1755047733877,4.24,4576.0,4575.9,36.02896244]
[1755047734082,4.24,4576.0,4575.9,38.77006244]
[1755047735088,5.47,4576.0,4575.9,38.77006244]
[1755047735307,5.47,4576.0,4575.9,49.13106244]
[1755047735514,5.47,4576.0,4575.9,54.36906244]
[1755047736049,5.47,4576.0,4575.9,52.95406244]
[1755047736177,5.47,4576.0,4575.9,42.9846]
[1755047736368,6.7,4576.0,4575.9,41.2579]
[1755047736573,6.7,4576.0,4575.9,38.957]
[1755047737168,6.7,4576.0,4575.9,35.238]
[1755047737585,6.7,4576.0,4575.9,5.238]
[1755047737887,7.93,4576.0,4575.9,5.238]
[1755047738086,7.93,4576.0,4575.9,8.953]
[1755047738291,7.93,4576.0,4575.9,11.156507]
[1755047738480,8.3803,4576.0,4575.9,12.755954]
[1755047738678,9.62923,4576.0,4575.9,34.374016]
[1755047738986,9.16,4576.0,4575.9,33.366445]
[1755047739191,9.16,4576.0,4575.9,35.668345]
[1755047739418,9.16,4576.0,4575.9,36.107545]
[1755047739587,9.16,4576.0,4575.9,38.29290744]
[1755047739786,9.16,4576.0,4575.9,41.6931]
[1755047740499,10.39,4576.0,4575.9,41.6901]
[1755047740698,10.39,4576.0,4575.9,43.87546244]
[1755047740925,10.39,4576.0,4575.9,51.51246244]
[1755047741324,10.39,4576.0,4575.9,51.50646244]
[1755047741540,10.39,4576.0,4575.9,45.1769]
[1755047741698,10.39,4576.0,4575.9,38.943]
[1755047741904,11.62,4576.0,4575.9,38.943]
[1755047743321,12.85,4576.0,4575.9,38.943]
[1755047744663,12.85,4576.0,4575.9,32.3019]
[1755047744868,14.08,4576.0,4575.9,41.2399]
[1755047745406,14.08,4576.0,4575.9,38.938]
[1755047745606,14.08,4576.0,4575.9,35.237]
[1755047745860,14.08,4576.0,4575.9,38.929]
[1755047746012,14.08,4576.0,4575.9,38.928]
[1755047746205,15.31,4576.0,4575.9,38.928]
[1755047746406,15.31,4576.0,4575.9,39.0376]
[1755047746815,15.31,4576.0,4575.9,43.96406244]
[1755047747413,16.54,4576.0,4575.9,44.18246244]
[1755047747745,16.54,4576.0,4575.9,51.81946244]
[1755047748153,16.54,4576.0,4575.9,53.12846244]
[1755047748308,16.54,4576.0,4575.9,49.43746244]
[1755047748514,16.54,4576.0,4575.9,53.12246244]
[1755047748814,16.54,4576.0,4575.9,51.37526244]
[1755047749116,17.77,4576.0,4575.9,51.37526244]
[1755047749728,17.77,4576.0,4575.9,51.37326244]
[1755047749929,17.77,4576.0,4575.9,51.81246244]
[1755047750335,19.002,4576.0,4575.9,51.81246244]
[1755047750542,18.452,4576.0,4575.9,51.92326244]
[1755047751053,18.452,4576.0,4575.9,49.40296244]
[1755047751230,18.452,4576.0,4575.9,49.39796244]
[1755047751547,18.452,4576.0,4575.9,43.5336]
[1755047751753,19.682,4576.0,4575.9,39.5756]
[1755047752125,19.682,4576.0,4575.9,41.76096244]
[1755047753055,20.912,4576.0,4575.9,41.76096244]
[1755047753354,20.912,4576.0,4575.9,39.5756]
[1755047754120,20.912,4576.0,4575.9,35.8966]
[1755047754324,20.912,4576.0,4575.9,39.5686]
[1755047754526,22.142,4576.0,4575.9,39.5686]
[1755047754952,22.142,4576.0,4575.9,9.5686]
[1755047755328,22.142,4576.0,4575.9,39.5686]
[1755047755641,22.142,4576.0,4575.9,5.3466]
[1755047755642,23.43562169,4576.0,4575.9,5.3466]
[1755047755816,26.03642169,4576.0,4575.9,7.406108]
[1755047756026,26.03642169,4576.0,4575.9,24.387474]
[1755047756237,26.03642169,4576.0,4575.9,20.432874]
[1755047756453,26.03642169,4576.0,4575.9,17.059895]
[1755047756659,24.66562169,4576.0,4575.9,17.059895]
[1755047757261,24.5023,4576.0,4575.9,5.787]
[1755047757554,24.5023,4576.0,4575.9,9.45]
[1755047757733,24.5023,4576.0,4575.9,9.454]
[1755047757930,24.5023,4576.0,4575.9,39.454]
[1755047758135,25.7957,4576.0,4575.9,9.453]
[1755047758325,28.00225568,4576.0,4575.9,9.453]
[1755047758524,28.00225568,4576.0,4575.9,14.71316]
[1755047758719,29.23225568,4576.0,4574.9,0.16346298]
[1755047759022,1.7437,4575.9,4574.6,0.001]
[1755047759228,2.20655568,4575.8,4572.4,2.3019]
[1755047759561,3.94495568,4575.8,4572.5,2.18697654]
[1755047759721,1.7384,4575.7,4574.5,2.4535]
[1755047759929,2.20655568,4575.8,4574.5,2.61363644]
[1755047759930,1.7384,4575.6,4574.5,2.61363644]
[1755047760131,1.7384,4575.6,4574.6,6.175401]
[1755047760429,2.25589557,4575.5,4574.7,3.667]
[1755047760631,1.7384,4575.4,4574.7,3.667]
[1755047760926,0.4512,4575.4,4574.7,3.667]
[1755047761127,0.4512,4575.4,4574.9,0.55]
[1755047761447,1.2872,4575.3,4574.9,0.55]
[1755047761761,1.7384,4575.2,4575.0,3.665]
[1755047762057,0.29684,4575.3,4575.1,4.215]
[1755047762267,1.23,4575.4,4575.3,0.55]
[1755047762590,2.9684,4575.4,4575.3,0.55]
[1755047762791,4.1984,4575.4,4575.3,0.55]
[1755047764112,2.9112,4575.4,4575.3,0.55]
[1755047764308,4.1412,4575.4,4575.3,0.55]
[1755047764963,4.67832,4575.4,4575.3,0.55]
[1755047765455,4.67832,4575.4,4575.3,5.789]
[1755047765616,5.90832,4575.4,4575.3,5.789]
[1755047766195,6.01792,4575.4,4575.3,5.789]
[1755047767189,7.24792,4575.4,4575.3,5.789]
[1755047768396,8.47792,4575.4,4575.3,5.789]
[1755047769789,8.7196,4575.4,4575.3,5.789]
[1755047769975,8.61,4575.4,4575.3,17.230122]
[1755047770195,8.61,4575.4,4575.3,38.0388]
[1755047770504,8.61,4575.4,4575.3,38.468]
[1755047770707,8.61,4575.4,4575.3,38.5776]
[1755047771005,8.61,4575.4,4575.3,8.711568]
[1755047771211,9.84,4575.4,4575.3,5.8986]
[1755047771508,9.84,4575.4,4575.3,14.473969]
[1755047772071,9.84,4575.4,4575.3,17.152969]
[1755047772296,9.84,4575.4,4575.3,38.5776]
[1755047772612,11.07,4575.4,4575.3,40.76324902]
[1755047773065,11.072,4575.4,4575.3,40.76324902]
[1755047773270,10.522,4575.4,4575.3,48.61964902]
[1755047773908,11.752,4575.4,4575.3,48.61964902]
[1755047775284,12.982,4575.4,4575.3,48.61964902]
[1755047776102,12.982,4575.4,4575.3,48.40124902]
[1755047776312,12.982,4575.4,4575.3,18.40124902]
[1755047776517,12.982,4575.4,4575.3,48.40124902]
[1755047776715,14.212,4575.4,4575.3,48.40124902]
[1755047776914,1.23,4575.7,4575.6,2.73550572]
[1755047777130,0.002,4575.9,4575.8,2.7354102]
[1755047777280,0.002,4575.9,4575.8,45.3084102]
[1755047777480,0.002,4575.9,4575.8,47.9874102]
[1755047778134,1.232,4575.9,4575.8,47.9874102]
[1755047778410,1.232,4575.9,4575.8,46.6784102]
[1755047778942,0.682,4575.9,4575.8,46.6784102]
[1755047779614,25.282,4576.0,4575.9,2.73536244]
[1755047779815,25.282,4576.0,4575.9,34.04436244]
[1755047780016,17.18989804,4576.0,4575.9,36.72336244]
[1755047780226,0.1567272,4576.0,4575.9,36.94176244]
[1755047780443,0.1567272,4576.0,4575.9,37.05136244]
[1755047780745,0.1567272,4576.0,4575.9,36.83296244]
[1755047780948,1.3867272,4576.0,4575.9,36.83296244]
[1755047781445,1.3867272,4576.0,4575.9,6.83296244]
[1755047781642,1.3867272,4576.0,4575.9,36.83296244]
[1755047781846,8.612,4576.1,4576.0,4.04431468]
[1755047782006,0.5621829,4576.1,4576.0,37.66031468]
[1755047782206,7.36683601,4576.6,4576.5,2.73507593]
[1755047782547,7.36683601,4576.6,4576.5,44.09467593]
[1755047782714,7.36683601,4576.6,4576.5,46.77367593]
[1755047783211,7.36683601,4576.6,4576.5,47.42828693]
[1755047783411,7.36683601,4576.6,4576.5,43.81328693]
[1755047783649,8.59683601,4576.6,4576.5,46.77067593]
[1755047783808,8.59683601,4576.6,4576.5,45.79147593]
[1755047784142,8.59683601,4576.6,4576.5,46.77067593]
[1755047785010,9.82683601,4576.6,4576.5,43.15867593]
[1755047785205,9.27683601,4576.6,4576.5,46.76767593]
[1755047785442,9.27683601,4576.6,4576.5,54.72667593]
[1755047786548,10.37483601,4576.6,4576.5,24.72667593]
[1755047786912,10.37483601,4576.6,4576.5,52.00367593]
[1755047787812,11.60483601,4576.6,4576.5,46.76767593]
[1755047788012,11.05483601,4576.6,4576.5,46.76767593]
[1755047788535,10.96665301,4576.6,4576.5,48.07667593]
[1755047788851,1.91022401,4576.7,4576.6,4.04402818]
[1755047789048,1.91022401,4576.7,4576.6,34.04402818]
[1755047789208,0.002,4576.9,4576.8,1.859]
[1755047789413,0.002,4576.9,4576.8,37.7535327]
[1755047789748,7.38,4578.1,4577.3,4.04369403]
[1755047789949,7.38,4578.1,4577.3,45.38529403]
[1755047790151,1e-08,4577.4,4577.3,48.30619403]
[1755047790652,7.38,4578.1,4577.6,4.04355085]
[1755047790870,7.38,4578.1,4577.6,34.04355085]
[1755047791028,7.38,4578.1,4578.0,2.73435998]
[1755047791217,7.38,4578.1,4578.0,45.48975998]
[1755047791569,7.38,4578.1,4578.0,42.00435998]
[1755047791727,7.8342,4578.1,4578.0,41.8876]
[1755047791929,9.0642,4578.1,4578.0,35.88895998]
[1755047792163,9.0642,4578.1,4578.0,34.359179]
[1755047792164,8.61,4578.1,4578.0,34.359179]
[1755047792323,8.61,4578.1,4578.0,34.909179]
[1755047793115,9.0642,4578.1,4578.0,34.905179]
[1755047793321,9.0642,4578.1,4578.0,29.329625]
[1755047793322,11.7008,4578.1,4578.0,29.329625]
[1755047793546,11.7008,4578.1,4578.0,29.328625]
[1755047793947,10.2942,4578.1,4578.0,34.904179]
[1755047794575,9.84,4578.1,4578.0,34.904179]
[1755047794863,11.5242,4578.1,4578.0,34.904179]
[1755047795253,11.5242,4578.1,4578.0,34.901179]
[1755047795437,11.5242,4578.1,4578.0,40.136179]
[1755047795944,11.072,4578.1,4578.0,10.136179]
[1755047796258,12.302,4578.1,4578.0,10.354579]
[1755047796419,12.302,4578.1,4578.0,40.354579]
[1755047796621,12.302,4578.1,4578.0,42.53893898]
[1755047796828,12.302,4578.1,4578.0,43.73833898]
[1755047797044,12.302,4578.1,4578.0,46.65923898]
[1755047797444,13.147562,4578.1,4578.0,46.65923898]
[1755047797977,12.7367,4578.1,4578.0,46.65923898]
[1755047798126,12.7367,4578.1,4578.0,46.65423898]
[1755047798855,13.9667,4578.1,4578.0,46.65423898]
[1755047799076,13.9667,4578.1,4578.0,16.65423898]
[1755047799361,13.9667,4578.1,4578.0,46.65423898]
[1755047799546,13.9667,4578.1,4578.0,40.15133898]
[1755047799737,13.9667,4578.1,4578.0,38.49733898]
[1755047799941,13.9667,4578.1,4578.0,32.731979]
[1755047800134,15.1967,4578.1,4578.0,36.308979]
[1755047800464,15.1967,4578.1,4578.0,30.872979]
[1755047800680,15.1967,4578.1,4578.0,30.654579]
[1755047800876,15.6509,4578.1,4578.0,34.229579]
[1755047801263,15.1967,4578.1,4578.0,36.96393898]
[1755047801635,16.4267,4578.1,4578.0,37.18233898]
[1755047801836,16.4267,4578.1,4578.0,33.60733898]
[1755047802040,16.4267,4578.1,4578.0,34.995979]
[1755047802240,16.8809,4578.1,4578.0,34.777579]
[1755047802566,16.8809,4578.1,4578.0,36.96193898]
[1755047802567,16.4267,4578.1,4578.0,36.96193898]